fUSD/lending_fUSD_20240212
["ID","MTS","AMOUNT","RATE_DAILY","PERIOD"]
[313842602,1707749462015,-250.0,0.00024658,2]
[313842603,1707749462025,-500.0,0.00024664,2]
[313842604,1707749462034,-500.0,0.00024664,2]
[313842605,1707749462043,-500.0,0.00024664,2]
[313842606,1707749462053,-500.0,0.00024664,2]
[313842607,1707749462062,-500.0,0.00024664,2]
[313842608,1707749462072,-1328.87,0.00024664,2]
[313842609,1707749462082,-500.0,0.00024664,2]
[313842610,1707749462091,-500.0,0.00024664,2]
[313842611,1707749462102,-500.0,0.00024664,2]
[313842612,1707749462111,-537.67,0.00024664,2]
[313842613,1707749462120,-500.0,0.00024664,2]
[313842614,1707749462130,-517.59,0.00024664,2]
[313842615,1707749462139,-355.98248981,0.00024664,2]
[313842616,1707749462149,-500.0,0.00024664,2]
[313842617,1707749462159,-500.0,0.00024664,2]
[313842618,1707749462168,-500.0,0.00024664,2]
[313842619,1707749462178,-500.0,0.00024664,2]
[313842620,1707749462187,-500.0,0.00024664,2]
[313842621,1707749462197,-378.3079806,0.00024664,2]
[313842622,1707749462207,-763.45,0.00024664,2]
[313842623,1707749462217,-254.88618473,0.00024664,2]
[313842624,1707749462227,-154.11,0.00024715,2]
[313842625,1707749462237,-1106.17,0.00024743,2]
[313842626,1707749462246,-500.0,0.00024743,2]
[313842627,1707749462256,-5433.87,0.00024743,2]
[313842628,1707749462267,-686.02,0.00024743,2]
[313842629,1707749462278,-5002.24,0.00024743,2]
[313842630,1707749462287,-1282.89,0.00024743,2]
[313842631,1707749462298,-4545.74,0.00024743,2]
[313842632,1707749462307,-500.0,0.00024743,2]
[313842633,1707749462317,-736.84,0.00024766,2]
[313842634,1707749462326,-14989.86070221,0.0002479,2]
[313842635,1707749462336,-14989.86070219,0.0002479,2]
[313842636,1707749462345,-639.53,0.00024791,2]
[313842637,1707749462355,-920.58,0.00024791,2]
[313842638,1707749462365,-500.0,0.00024791,2]
[313842639,1707749462374,-900.15,0.00024791,2]
[313842640,1707749462384,-500.0,0.00024791,2]
[313842641,1707749462394,-500.0,0.00024791,2]
[313842642,1707749462403,-500.0,0.00024791,2]
[313842643,1707749462413,-1461.09,0.00024791,2]
[313842644,1707749462423,-587.81,0.00024791,2]
[313842645,1707749462432,-500.0,0.00024791,2]
[313842646,1707749462442,-500.0,0.00024835,2]
[313842647,1707749462453,-500.0,0.00024835,2]
[313842648,1707749462468,-500.0,0.00024835,2]
[313842649,1707749462477,-500.0,0.00024835,2]
[313842650,1707749462487,-500.0,0.00024835,2]
[313842651,1707749462497,-212.77748696,0.00024835,2]
[313842652,1707749462507,-7766.59,0.00024835,2]
[313842653,1707749462516,-3859.6,0.00024835,2]
[313842654,1707749462529,-3196.37,0.00024835,2]
[313842655,1707749462539,-555.97,0.00024835,2]
[313842656,1707749462549,-500.0,0.00024835,2]
[313842657,1707749462559,-500.0,0.00024835,2]
[313842658,1707749462569,-500.0,0.00024835,2]
[313842659,1707749462578,-189.42260895,0.00024835,2]
[313842660,1707749462588,-2487.26,0.00024835,2]
[313842661,1707749462599,-710.62,0.00024835,2]
[313842662,1707749462609,-1220.17,0.00024835,2]
[313842663,1707749462618,-500.0,0.00024835,2]
[313842664,1707749462628,-500.0,0.00024835,2]
[313842665,1707749462638,-698.32,0.00024835,2]
[313842666,1707749462654,-500.0,0.00024835,2]
[313842667,1707749462664,-855.42,0.00024835,2]
[313842668,1707749462673,-695.43,0.00024835,2]
[313842669,1707749462683,-1944.8,0.00024835,2]
[313842670,1707749462694,-1365.41,0.00024835,2]
[313842671,1707749462706,-5273.64,0.00024835,2]
[313842672,1707749462716,-1034.4,0.00024835,2]
[313842673,1707749462727,-2858.6,0.00024835,2]
[313842674,1707749462737,-1468.93,0.00024835,2]
[313842675,1707749462747,-881.17,0.00024835,2]
[313842676,1707749462757,-500.0,0.00024835,2]
[313842677,1707749462767,-1639.87,0.00024835,2]
[313842678,1707749462779,-500.0,0.00024835,2]
[313842679,1707749462789,-1006.08,0.00024835,2]
[313842680,1707749462799,-659.03,0.00024835,2]
[313842681,1707749462809,-731.5,0.00024835,2]
[313842682,1707749462819,-875.47,0.00024835,2]
[313842683,1707749462828,-2501.35,0.00024835,2]
[313842684,1707749462838,-2026.22,0.00024835,2]
[313842685,1707749462848,-500.0,0.00024835,2]
[313842686,1707749462858,-500.0,0.00024835,2]
[313842687,1707749462869,-3714.48,0.00024835,2]
[313842688,1707749462879,-1998.1,0.00024835,2]
[313842689,1707749462889,-500.0,0.00024835,2]
[313842690,1707749462898,-1114.23,0.00024835,2]
[313842691,1707749462909,-500.0,0.00024835,2]
[313842692,1707749462920,-500.0,0.00024835,2]
[313842693,1707749463078,-500.0,0.00024835,2]
[313842694,1707749463101,-500.0,0.00024836,2]
[313842695,1707749463110,-500.0,0.00024836,2]
[313842696,1707749463120,-1070.93,0.00024836,2]
[313842697,1707749463129,-1391.19,0.00024836,2]
[313842698,1707749463139,-1079.7,0.00024836,2]
[313842699,1707749463149,-500.0,0.00024836,2]
[313842700,1707749463158,-1574.12,0.00024836,2]
[313842701,1707749463168,-980.03,0.00024836,2]
[313842702,1707749463177,-2683.79,0.00024836,2]
[313842703,1707749463187,-500.0,0.00024836,2]
[313842704,1707749463197,-639.17,0.00024836,2]
[313842705,1707749463207,-659.69,0.00024836,2]
[313842706,1707749463217,-612.09,0.00024836,2]
[313842707,1707749463227,-500.0,0.00024836,2]
[313842708,1707749463236,-1761.81,0.00024836,2]
[313842709,1707749463246,-940.52,0.00024836,2]
[313842710,1707749463256,-500.0,0.00024836,2]
[313842711,1707749463265,-564.5,0.00024836,2]
[313842712,1707749463277,-500.0,0.00024836,2]
[313842713,1707749463287,-500.0,0.00024836,2]
[313842714,1707749463297,-500.0,0.00024836,2]
[313842715,1707749463306,-500.0,0.00024836,2]
[313842716,1707749463317,-500.0,0.00024836,2]
[313842717,1707749463327,-1622.0,0.00024836,2]
[313842718,1707749463337,-3437.62,0.00024836,2]
[313842719,1707749463347,-617.57,0.00024836,2]
[313842720,1707749463357,-500.0,0.00024836,2]
[313842721,1707749463367,-761.77,0.00024836,2]
[313842722,1707749463376,-958.99,0.00024836,2]
[313842723,1707749463386,-535.46,0.00024836,2]
[313842724,1707749463396,-500.0,0.00024836,2]
[313842725,1707749463406,-500.0,0.00024836,2]
[313842726,1707749463416,-500.0,0.00024836,2]
[313842727,1707749463426,-500.0,0.00024836,2]
[313842728,1707749463436,-500.0,0.00024836,2]
[313842729,1707749463447,-867.34,0.00024836,2]
[313842730,1707749463456,-682.52,0.00024836,2]
[313842731,1707749463466,-500.0,0.00024836,2]
[313842732,1707749463476,-8830.94,0.00024836,2]
[313842733,1707749463486,-838.54,0.00024836,2]
[313842734,1707749463496,-500.0,0.00024836,2]
[313842735,1707749463506,-612.98487506,0.00024836,2]
[313842736,1707749463515,-500.0,0.00024836,2]
[313842737,1707749463526,-1383.03,0.00024836,2]
[313842738,1707749463536,-500.0,0.00024836,2]
[313842739,1707749463547,-769.24,0.00024836,2]
[313842740,1707749463557,-500.0,0.00024836,2]
[313842741,1707749463567,-1563.89,0.00024836,2]
[313842742,1707749463577,-3711.11,0.00024836,2]
[313842743,1707749463586,-967.49,0.00024836,2]
[313842744,1707749463596,-500.0,0.00024836,2]
[313842745,1707749463606,-500.0,0.00024836,2]
[313842746,1707749463616,-173.15,0.00024875,2]
[313842747,1707749463626,-4694.77060794,0.00024883,3]
[313842748,1707749463635,-500.0,0.00024938,2]
[313842749,1707749463646,-500.0,0.00024938,2]
[313842750,1707749463656,-500.0,0.00024938,2]
[313842751,1707749463665,-500.0,0.00024938,2]
[313842752,1707749463675,-500.0,0.00024938,2]
[313842753,1707749463684,-1328.87,0.00024938,2]
[313842754,1707749463694,-500.0,0.00024938,2]
[313842755,1707749463704,-500.0,0.00024938,2]
[313842756,1707749463714,-500.0,0.00024938,2]
[313842757,1707749463724,-537.67,0.00024938,2]
[313842758,1707749463733,-500.0,0.00024938,2]
[313842759,1707749463743,-517.59,0.00024938,2]
[313842760,1707749463753,-500.0,0.00024938,2]
[313842761,1707749463764,-500.0,0.00024938,2]
[313842762,1707749463776,-500.0,0.00024938,2]
[313842763,1707749463786,-301.66506681,0.00024938,2]
[313842764,1707749463795,-763.45,0.00024938,2]
[313842765,1707749463805,-700.0,0.0002497,2]
[313842766,1707749463815,-1161.13696104,0.0002497,2]
[313842767,1707749463824,-1821.67035105,0.00025,2]
[313842768,1707749463833,-1592.09246113,0.00025,2]
[313842769,1707749463843,-946.31124793,0.00025,2]
[313842770,1707749463854,-436.72937996,0.00025,2]
[313842771,1707749463863,-324.62770337,0.00025,2]
[313842772,1707749463873,-750.0,0.00025,3]
[313842773,1707749463883,-227.38913805,0.00025,2]
[313842774,1707749463893,-160.33106952,0.00025,2]
[313842775,1707749463903,-908.89017,0.00025,2]
[313842776,1707749463913,-9072.32734278,0.00025,2]
[313842777,1707749463924,-4000.0,0.00025,2]
[313842778,1707749463933,-3000.0,0.00025,2]
[313842779,1707749463944,-500.0,0.00025,2]
[313842780,1707749463954,-3000.0,0.0002501,2]
[313842781,1707749463965,-1106.17,0.00025017,2]
[313842782,1707749463975,-500.0,0.00025017,2]
[313842783,1707749463985,-5433.87,0.00025017,2]
[313842784,1707749463996,-686.02,0.00025017,2]
[313842785,1707749464006,-5002.24,0.00025017,2]
[313842786,1707749464017,-1282.89,0.00025017,2]
[313842787,1707749464029,-4545.74,0.00025017,2]
[313842788,1707749464038,-500.0,0.00025017,2]
[313842789,1707749464048,-1367.0,0.00025019,2]
[313842790,1707749464057,-841.0,0.00025019,2]
[313842791,1707749464067,-1859.0,0.00025019,2]
[313842792,1707749464077,-952.0,0.00025019,2]
[313842793,1707749464087,-707.0,0.00025019,2]
[313842794,1707749464098,-1253.0,0.00025019,2]
[313842795,1707749464108,-1237.615,0.00025019,2]
[313842796,1707749464118,-531.0,0.00025019,2]
[313842797,1707749464128,-328.654,0.00025019,2]
[313842798,1707749464138,-237.0,0.00025019,2]
[313842799,1707749464147,-429.0,0.00025019,2]
[313842800,1707749464158,-1003.0,0.00025019,2]
[313842801,1707749464167,-1947.0,0.00025019,2]
[313842802,1707749464177,-1138.0,0.00025019,2]
[313842803,1707749464187,-321.0,0.00025019,2]
[313842804,1707749464198,-859.0,0.00025019,2]
[313842805,1707749464207,-150.0,0.00025019,2]
[313842806,1707749464218,-343.0,0.00025019,2]
[313842807,1707749464228,-453.0,0.00025019,2]
[313842808,1707749464238,-5622.0,0.00025019,2]
[313842809,1707749464248,-8156.0,0.00025019,2]
[313842810,1707749464258,-19827.0,0.00025019,2]
[313842811,1707749464267,-2924.0,0.00025019,2]
[313842812,1707749464279,-4206.0,0.00025019,2]
[313842813,1707749464288,-42526.0,0.00025019,2]
[313842814,1707749464298,-2287.0,0.00025019,2]
[313842815,1707749464308,-150.0,0.00025019,2]
[313842816,1707749464317,-150.0,0.00025019,2]
[313842817,1707749464327,-150.0,0.00025019,2]
[313842818,1707749464337,-150.0,0.00025019,2]
[313842819,1707749464346,-150.0,0.00025019,2]
[313842820,1707749464356,-1036.0,0.00025019,2]
[313842821,1707749464366,-3000.0,0.0002502,2]
[313842822,1707749464376,-3000.0,0.0002503,2]
[313842823,1707749464386,-3000.0,0.0002504,2]
[313842824,1707749464395,-3000.0,0.0002505,2]
[313842825,1707749464406,-3000.0,0.0002506,2]
[313842826,1707749464416,-639.53,0.00025065,2]
[313842827,1707749464426,-920.58,0.00025065,2]
[313842828,1707749464436,-500.0,0.00025065,2]
[313842829,1707749464446,-900.15,0.00025065,2]
[313842830,1707749464456,-500.0,0.00025065,2]
[313842831,1707749464466,-500.0,0.00025065,2]
[313842832,1707749464476,-526.49168536,0.00025065,2]
[313842833,1707749464487,-1461.09,0.00025065,2]
[313842834,1707749464497,-587.81,0.00025065,2]
[313842835,1707749464507,-500.0,0.00025065,2]
[313842836,1707749464518,-3000.0,0.0002507,2]
[313842837,1707749464530,-3000.0,0.0002508,2]
[313842838,1707749464539,-3000.0,0.0002509,2]
[313842839,1707749464549,-3000.0,0.000251,2]
[313842840,1707749464558,-500.0,0.00025109,2]
[313842841,1707749464567,-640.05493882,0.00025109,2]
[313842842,1707749464577,-500.0,0.00025109,2]
[313842843,1707749464587,-500.0,0.00025109,2]
[313842844,1707749464600,-500.0,0.00025109,2]
[313842845,1707749464622,-7766.59,0.00025109,2]
[313842846,1707749464644,-3859.6,0.00025109,2]
[313842847,1707749464667,-3196.37,0.00025109,2]
[313842848,1707749464691,-555.97,0.00025109,2]
[313842849,1707749464713,-500.0,0.00025109,2]
[313842850,1707749464736,-500.0,0.00025109,2]
[313842851,1707749464759,-500.0,0.00025109,2]
[313842852,1707749464770,-2487.26,0.00025109,2]
[313842853,1707749464783,-710.62,0.00025109,2]
[313842854,1707749464793,-1220.17,0.00025109,2]
[313842855,1707749464804,-500.0,0.00025109,2]
[313842856,1707749464814,-500.0,0.00025109,2]
[313842857,1707749464825,-698.32,0.00025109,2]
[313842858,1707749464835,-504.2819593,0.00025109,2]
[313842859,1707749464846,-855.42,0.00025109,2]
[313842860,1707749464855,-695.43,0.00025109,2]
[313842861,1707749464866,-1944.8,0.00025109,2]
[313842862,1707749464876,-1365.41,0.00025109,2]
[313842863,1707749464886,-5273.64,0.00025109,2]
[313842864,1707749464896,-1034.4,0.00025109,2]
[313842865,1707749464906,-2858.6,0.00025109,2]
[313842866,1707749464917,-1468.93,0.00025109,2]
[313842867,1707749464926,-881.17,0.00025109,2]
[313842868,1707749464935,-500.0,0.00025109,2]
[313842869,1707749464946,-1639.87,0.00025109,2]
[313842870,1707749464955,-500.0,0.00025109,2]
[313842871,1707749464965,-1006.08,0.00025109,2]
[313842872,1707749464975,-659.03,0.00025109,2]
[313842873,1707749464985,-731.5,0.00025109,2]
[313842874,1707749464995,-875.47,0.00025109,2]
[313842875,1707749465005,-2501.35,0.00025109,2]
[313842876,1707749465015,-2026.22,0.00025109,2]
[313842877,1707749465027,-500.0,0.00025109,2]
[313842878,1707749465043,-500.0,0.00025109,2]
[313842879,1707749465054,-3714.48,0.00025109,2]
[313842880,1707749465065,-1998.1,0.00025109,2]
[313842881,1707749465075,-500.0,0.00025109,2]
[313842882,1707749465086,-1114.23,0.00025109,2]
[313842883,1707749465096,-500.0,0.00025109,2]
[313842884,1707749465106,-500.0,0.00025109,2]
[313842885,1707749465118,-500.0,0.00025109,2]
[313842886,1707749465127,-424.44318239,0.0002511,2]
[313842887,1707749465137,-500.0,0.0002511,2]
[313842888,1707749465147,-1070.93,0.0002511,2]
[313842889,1707749465157,-1391.19,0.0002511,2]
[313842890,1707749465167,-1079.7,0.0002511,2]
[313842891,1707749465178,-500.0,0.0002511,2]
[313842892,1707749465189,-1574.12,0.0002511,2]
[313842893,1707749465199,-3000.0,0.0002511,2]
[313842894,1707749465211,-980.03,0.0002511,2]
[313842895,1707749465222,-2683.79,0.0002511,2]
[313842896,1707749465232,-500.0,0.0002511,2]
[313842897,1707749465507,-639.17,0.0002511,2]
[313842898,1707749465534,-659.69,0.0002511,2]
[313842899,1707749465545,-612.09,0.0002511,2]
[313842900,1707749465556,-500.0,0.0002511,2]
[313842901,1707749465568,-1761.81,0.0002511,2]
[313842902,1707749465578,-940.52,0.0002511,2]
[313842903,1707749465589,-500.0,0.0002511,2]
[313842904,1707749465600,-564.5,0.0002511,2]
[313842905,1707749465610,-500.0,0.0002511,2]
[313842906,1707749465620,-500.0,0.0002511,2]
[313842907,1707749465632,-500.0,0.0002511,2]
[313842908,1707749465643,-500.0,0.0002511,2]
[313842909,1707749465654,-500.0,0.0002511,2]
[313842910,1707749465665,-1622.0,0.0002511,2]
[313842911,1707749465676,-3437.62,0.0002511,2]
[313842912,1707749465686,-617.57,0.0002511,2]
[313842913,1707749465697,-500.0,0.0002511,2]
[313842914,1707749465707,-761.77,0.0002511,2]
[313842915,1707749465718,-958.99,0.0002511,2]
[313842916,1707749465729,-535.46,0.0002511,2]
[313842917,1707749465739,-500.0,0.0002511,2]
[313842918,1707749465749,-500.0,0.0002511,2]
[313842919,1707749465759,-500.0,0.0002511,2]
[313842920,1707749465769,-500.0,0.0002511,2]
[313842921,1707749465782,-500.0,0.0002511,2]
[313842922,1707749465792,-867.34,0.0002511,2]
[313842923,1707749465802,-682.52,0.0002511,2]
[313842924,1707749465813,-500.0,0.0002511,2]
[313842925,1707749465824,-8830.94,0.0002511,2]
[313842926,1707749465834,-838.54,0.0002511,2]
[313842927,1707749465845,-279.61724196,0.0002511,2]
[313842928,1707749465857,-500.0,0.0002511,2]
[313842929,1707749465867,-1383.03,0.0002511,2]
[313842930,1707749465878,-500.0,0.0002511,2]
[313842931,1707749465888,-769.24,0.0002511,2]
[313842932,1707749465899,-500.0,0.0002511,2]
[313842933,1707749465909,-1563.89,0.0002511,2]
[313842934,1707749465919,-3711.11,0.0002511,2]
[313842935,1707749465930,-967.49,0.0002511,2]
[313842936,1707749465940,-526.71458455,0.0002511,2]
[313842937,1707749465951,-500.0,0.0002511,2]
[313842938,1707749465961,-3000.0,0.0002512,2]
[313842939,1707749465972,-3000.0,0.0002513,2]
[313842940,1707749465982,-155.51,0.00025137,2]
[313842941,1707749465992,-3000.0,0.0002514,2]
[313842942,1707749466003,-3000.0,0.0002515,2]
[313842943,1707749466013,-5030.651384,0.0002516,2]
[313842944,1707749466026,-500.0,0.00025212,2]
[313842945,1707749466036,-500.0,0.00025212,2]
[313842946,1707749466046,-500.0,0.00025212,2]
[313842947,1707749466056,-500.0,0.00025212,2]
[313842948,1707749466066,-1328.87,0.00025212,2]
[313842949,1707749466078,-500.0,0.00025212,2]
[313842950,1707749466089,-500.0,0.00025212,2]
[313842951,1707749466099,-500.0,0.00025212,2]
[313842952,1707749466109,-537.67,0.00025212,2]
[313842953,1707749466119,-500.0,0.00025212,2]
[313842954,1707749466130,-517.59,0.00025212,2]
[313842955,1707749466141,-500.0,0.00025212,2]
[313842956,1707749466151,-500.0,0.00025212,2]
[313842957,1707749466162,-500.0,0.00025212,2]
[313842958,1707749466172,-763.45,0.00025212,2]
[313842959,1707749466183,-1106.17,0.00025291,2]
[313842960,1707749466193,-500.0,0.00025291,2]
[313842961,1707749466202,-5433.87,0.00025291,2]
[313842962,1707749466213,-686.02,0.00025291,2]
[313842963,1707749466223,-5002.24,0.00025291,2]
[313842964,1707749466233,-1282.89,0.00025291,2]
[313842965,1707749466244,-4545.74,0.00025291,2]
[313842966,1707749466255,-161.56,0.00025291,2]
[313842967,1707749466267,-639.53,0.00025339,2]
[313842968,1707749466279,-920.58,0.00025339,2]
[313842969,1707749466289,-500.0,0.00025339,2]
[313842970,1707749466299,-900.15,0.00025339,2]
[313842971,1707749466310,-500.0,0.00025339,2]
[313842972,1707749466320,-500.0,0.00025339,2]
[313842973,1707749466334,-1461.09,0.00025339,2]
[313842974,1707749466344,-587.81,0.00025339,2]
[313842975,1707749466354,-500.0,0.00025339,2]
[313842976,1707749466364,-500.0,0.00025383,2]
[313842977,1707749466374,-500.0,0.00025383,2]
[313842978,1707749466384,-500.0,0.00025383,2]
[313842979,1707749466394,-500.0,0.00025383,2]
[313842980,1707749466404,-7766.59,0.00025383,2]
[313842981,1707749466414,-3859.6,0.00025383,2]
[313842982,1707749466425,-3196.37,0.00025383,2]
[313842983,1707749466435,-555.97,0.00025383,2]
[313842984,1707749466445,-500.0,0.00025383,2]
[313842985,1707749466455,-500.0,0.00025383,2]
[313842986,1707749466466,-500.0,0.00025383,2]
[313842987,1707749466476,-2487.26,0.00025383,2]
[313842988,1707749466486,-710.62,0.00025383,2]
[313842989,1707749466497,-1220.17,0.00025383,2]
[313842990,1707749466508,-500.0,0.00025383,2]
[313842991,1707749466520,-500.0,0.00025383,2]
[313842992,1707749466532,-698.32,0.00025383,2]
[313842993,1707749466543,-855.42,0.00025383,2]
[313842994,1707749466554,-695.43,0.00025383,2]
[313842995,1707749466565,-1944.8,0.00025383,2]
[313842996,1707749466576,-1365.41,0.00025383,2]
[313842997,1707749466587,-5273.64,0.00025383,2]
[313842998,1707749466598,-1034.4,0.00025383,2]
[313842999,1707749466608,-2858.6,0.00025383,2]
[313843000,1707749466619,-1468.93,0.00025383,2]
[313843001,1707749466631,-881.17,0.00025383,2]
[313843002,1707749466643,-500.0,0.00025383,2]
[313843003,1707749466654,-1639.87,0.00025383,2]
[313843004,1707749466664,-500.0,0.00025383,2]
[313843005,1707749466674,-1006.08,0.00025383,2]
[313843006,1707749466685,-659.03,0.00025383,2]
[313843007,1707749466696,-731.5,0.00025383,2]
[313843008,1707749466706,-875.47,0.00025383,2]
[313843009,1707749466717,-2501.35,0.00025383,2]
[313843010,1707749466728,-2026.22,0.00025383,2]
[313843011,1707749466739,-500.0,0.00025383,2]
[313843012,1707749466749,-500.0,0.00025383,2]
[313843013,1707749466759,-3714.48,0.00025383,2]
[313843014,1707749466770,-1998.1,0.00025383,2]
[313843015,1707749466783,-500.0,0.00025383,2]
[313843016,1707749466794,-1114.23,0.00025383,2]
[313843017,1707749466804,-500.0,0.00025383,2]
[313843018,1707749466815,-500.0,0.00025383,2]
[313843019,1707749466826,-500.0,0.00025383,2]
[313843020,1707749466838,-500.0,0.00025384,2]
[313843021,1707749466848,-1070.93,0.00025384,2]
[313843022,1707749466862,-1391.19,0.00025384,2]
[313843023,1707749466872,-1079.7,0.00025384,2]
[313843024,1707749466891,-500.0,0.00025384,2]
[313843025,1707749466901,-1574.12,0.00025384,2]
[313843026,1707749466932,-980.03,0.00025384,2]
[313843027,1707749466957,-2683.79,0.00025384,2]
[313843028,1707749466970,-500.0,0.00025384,2]
[313843029,1707749466980,-639.17,0.00025384,2]
[313843030,1707749466991,-659.69,0.00025384,2]
[313843031,1707749467001,-612.09,0.00025384,2]
[313843032,1707749467026,-500.0,0.00025384,2]
[313843033,1707749467056,-1761.81,0.00025384,2]
[313843034,1707749467082,-940.52,0.00025384,2]
[313843035,1707749467111,-283.55636002,0.00025384,2]
[313843036,1707749467121,-564.5,0.00025384,2]
[313843037,1707749467139,-578.17973587,0.00025384,2]
[313843038,1707749467150,-500.0,0.00025384,2]
[313843039,1707749467175,-500.0,0.00025384,2]
[313843040,1707749467194,-500.0,0.00025384,2]
[313843041,1707749467209,-1622.0,0.00025384,2]
[313843042,1707749467226,-500.0,0.00025384,2]
[313843043,1707749467239,-3437.62,0.00025384,2]
[313843044,1707749467250,-617.57,0.00025384,2]
[313843045,1707749467284,-500.0,0.00025384,2]
[313843046,1707749467312,-761.77,0.00025384,2]
[313843047,1707749467326,-958.99,0.00025384,2]
[313843048,1707749467337,-535.46,0.00025384,2]
[313843049,1707749467347,-500.0,0.00025384,2]
[313843050,1707749467357,-500.0,0.00025384,2]
[313843051,1707749467367,-500.0,0.00025384,2]
[313843052,1707749467377,-500.0,0.00025384,2]
[313843053,1707749467388,-500.0,0.00025384,2]
[313843054,1707749467398,-867.34,0.00025384,2]
[313843055,1707749467409,-682.52,0.00025384,2]
[313843056,1707749467419,-500.0,0.00025384,2]
[313843057,1707749467429,-8830.94,0.00025384,2]
[313843058,1707749467438,-838.54,0.00025384,2]
[313843059,1707749467448,-500.0,0.00025384,2]
[313843060,1707749467459,-1383.03,0.00025384,2]
[313843061,1707749467469,-500.0,0.00025384,2]
[313843062,1707749467480,-769.24,0.00025384,2]
[313843063,1707749467491,-500.0,0.00025384,2]
[313843064,1707749467501,-1563.89,0.00025384,2]
[313843065,1707749467511,-3711.11,0.00025384,2]
[313843066,1707749467522,-967.49,0.00025384,2]
[313843067,1707749467533,-500.0,0.00025384,2]
[313843068,1707749467543,-323.50340506,0.00025486,2]
[313843069,1707749467553,-500.0,0.00025486,2]
[313843070,1707749467564,-500.0,0.00025486,2]
[313843071,1707749467574,-500.0,0.00025486,2]
[313843072,1707749467583,-1328.87,0.00025486,2]
[313843073,1707749467592,-500.0,0.00025486,2]
[313843074,1707749467603,-500.0,0.00025486,2]
[313843075,1707749467613,-500.0,0.00025486,2]
[313843076,1707749467623,-537.67,0.00025486,2]
[313843077,1707749467634,-500.0,0.00025486,2]
[313843078,1707749467645,-517.59,0.00025486,2]
[313843079,1707749467655,-500.0,0.00025486,2]
[313843080,1707749467664,-500.0,0.00025486,2]
[313843081,1707749467675,-500.0,0.00025486,2]
[313843082,1707749467686,-763.45,0.00025486,2]
[313843083,1707749467697,-4000.0,0.000255,2]
[313843084,1707749467706,-151.0,0.00025549,2]
[313843085,1707749467716,-1106.17,0.00025565,2]
[313843086,1707749467728,-500.0,0.00025565,2]
[313843087,1707749467740,-5433.87,0.00025565,2]
[313843088,1707749467751,-686.02,0.00025565,2]
[313843089,1707749467761,-5002.24,0.00025565,2]
[313843090,1707749467771,-1282.89,0.00025565,2]
[313843091,1707749467784,-4545.74,0.00025565,2]
[313843092,1707749467795,-200.0,0.00025587,2]
[313843093,1707749467805,-2608.04294306,0.00025587,2]
[313843094,1707749467816,-512.06274968,0.00025587,2]
[313843095,1707749467827,-639.53,0.00025613,2]
[313843096,1707749467838,-920.58,0.00025613,2]
[313843097,1707749467849,-500.0,0.00025613,2]
[313843098,1707749467860,-900.15,0.00025613,2]
[313843099,1707749467870,-500.0,0.00025613,2]
[313843100,1707749467881,-500.0,0.00025613,2]
[313843101,1707749467892,-1461.09,0.00025613,2]